bitfinex-derivatives/quotes_BNBF0:USTF0_20250529
["timestamp","ask_amount","ask_price","bid_price","bid_amount"]
[1748482436382,0.29007788,689.47,689.14,1.05228471]
[1748482436683,0.29007788,689.47,689.15,1.05227716]
[1748482436878,0.29007788,689.47,689.16,1.05227716]
[1748482437077,0.29007788,689.47,689.17,1.05227716]
[1748482437282,0.29007788,689.47,689.18,1.05227716]
[1748482437582,0.29007788,689.47,689.19,1.05161161]
[1748482437783,0.29007788,689.47,689.06,0.479]
[1748482438282,0.29007788,689.47,689.07,1.05158207]
[1748482438486,0.29007788,689.47,689.08,1.05158207]
[1748482438781,0.29007788,689.47,689.09,1.05158207]
[1748482438982,0.29007788,689.47,689.06,0.479]
[1748482438983,0.29007788,689.47,689.1,1.05158207]
[1748482439184,0.29007788,689.47,689.11,1.05138153]
[1748482439382,0.29007788,689.47,689.12,1.05138153]
[1748482439585,0.29007788,689.47,689.13,1.05138153]
[1748482439785,0.29007788,689.47,689.14,1.05137001]
[1748482439987,0.29007788,689.47,689.15,1.05137001]
[1748482440284,0.29007788,689.47,689.16,1.05136979]
[1748482440587,0.29007788,689.47,689.17,1.05136979]
[1748482440887,0.29007788,689.47,689.18,1.05136979]
[1748482441089,0.29007788,689.47,689.19,1.05136979]
[1748482441281,0.29007788,689.47,689.06,0.479]
[1748482441485,0.29007788,689.47,689.07,1.05138794]
[1748482441686,0.29007788,689.47,689.08,1.05138204]
[1748482441887,0.29007788,689.47,689.09,1.05138204]
[1748482442088,0.29007788,689.47,689.1,1.05138204]
[1748482442284,0.29007788,689.47,689.11,1.05138204]
[1748482442487,0.29007788,689.47,689.06,0.479]
[1748482442488,0.29007788,689.47,689.12,1.05134297]
[1748482442684,0.29007788,689.47,689.06,0.479]
[1748482442685,0.29007788,689.47,689.13,1.05134297]
[1748482442888,0.29007788,689.47,689.14,1.05134297]
[1748482443190,0.29007788,689.47,689.15,1.05134297]
[1748482443385,0.29007788,689.47,689.16,1.05134297]
[1748482443583,0.29007788,689.47,689.17,1.05134297]
[1748482443783,0.29007788,689.47,689.18,1.05134297]
[1748482443984,0.29007788,689.47,689.19,1.05134297]
[1748482444184,0.29007788,689.47,689.2,1.05134297]
[1748482444384,0.29007788,689.47,689.21,1.04996228]
[1748482444689,0.29007788,689.47,689.06,0.479]
[1748482444989,0.29007788,689.47,689.07,1.04996481]
[1748482445181,0.29007788,689.47,689.06,0.479]
[1748482445386,0.29007788,689.47,689.07,1.04996415]
[1748482445584,0.29007788,689.47,689.08,1.04996415]
[1748482445886,0.29007788,689.47,689.09,1.04996415]
[1748482446084,0.29007788,689.47,689.06,0.479]
[1748482446085,0.29007788,689.47,689.1,1.04996415]
[1748482446283,0.29007788,689.47,689.11,1.04963819]
[1748482446486,0.29007788,689.47,689.12,1.04963819]
[1748482446709,0.29007788,689.47,689.13,1.04963788]
[1748482446886,0.29007788,689.47,689.14,1.04963788]
[1748482447090,0.29007788,689.47,689.15,1.04963788]
[1748482447290,0.29007788,689.47,689.16,1.04963788]
[1748482447489,0.29007788,689.47,689.17,1.04963788]
[1748482447690,0.29007788,689.47,689.18,1.04965602]
[1748482447889,0.29007788,689.47,689.19,1.04920542]
[1748482448091,0.29007788,689.47,689.2,1.04920542]
[1748482448286,0.29007788,689.47,689.21,1.04920542]
[1748482448586,0.29007788,689.47,689.22,1.04923657]
[1748482448785,0.29007788,689.47,689.23,1.04923761]
[1748482448989,0.29007788,689.47,689.24,1.04923761]
[1748482449187,0.29007788,689.47,689.25,1.04923761]
[1748482449487,0.29007788,689.47,689.26,1.04923761]
[1748482449689,0.29007788,689.47,689.27,1.04929777]
[1748482449990,0.29007788,689.47,689.28,1.04929777]
[1748482450188,0.29007788,689.47,689.29,1.04929777]
[1748482450390,0.29007788,689.47,689.3,1.04929777]
[1748482450591,0.29007788,689.47,689.31,1.04929777]
[1748482450890,0.29007788,689.47,689.32,1.04929777]
[1748482451089,0.29007788,689.47,689.33,1.04929777]
[1748482451394,0.29007788,689.47,689.34,1.04935278]
[1748482451595,0.29007788,689.47,689.35,1.04935278]
[1748482451788,0.29007788,689.47,689.06,0.479]
[1748482451789,0.29007788,689.47,689.36,1.04935278]
[1748482451993,0.29007788,689.47,689.37,1.04935278]
[1748482452193,0.29007788,689.47,689.38,1.04935278]
[1748482452392,0.29007788,689.47,689.39,1.04935278]
[1748482452593,0.29007788,689.47,689.06,0.479]
[1748482452795,0.29007788,689.47,689.07,1.04954406]
[1748482453092,0.29007788,689.47,689.08,1.04954406]
[1748482453292,0.29007788,689.47,689.09,1.04954396]
[1748482453491,0.29007788,689.47,689.1,1.04954396]
[1748482453691,0.29007788,689.47,689.11,1.04964333]
[1748482453892,0.29007788,689.47,689.06,0.479]
[1748482454296,0.29007788,689.47,689.07,1.04964347]
[1748482454591,0.29007788,689.47,689.08,1.04964347]
[1748482454791,0.29007788,689.47,689.09,1.04964347]
[1748482454996,0.29007788,689.47,689.1,1.04964347]
[1748482455196,0.29007788,689.47,689.11,1.04964347]
[1748482455393,0.29007788,689.47,689.06,0.479]
[1748482455592,0.29007788,689.47,689.07,1.04974979]
[1748482455796,0.29007788,689.47,689.06,0.479]
[1748482455993,0.29007788,689.47,689.07,1.04986939]
[1748482456195,0.29007788,689.47,689.08,1.04986939]
[1748482456397,0.29007788,689.47,689.09,1.04986939]
[1748482456600,0.29007788,689.47,689.1,1.04986939]
[1748482456803,0.29007788,689.47,689.06,0.479]
[1748482457001,0.29007788,689.47,689.07,1.05001521]
[1748482457200,0.29007788,689.47,689.06,0.479]
[1748482457400,0.29007788,689.47,689.07,1.05001689]
[1748482457602,0.29007788,689.47,689.08,1.05001689]
[1748482457799,0.29007788,689.47,689.09,1.05018215]
[1748482458102,0.29007788,689.47,689.1,1.05018215]
[1748482458297,0.29007788,689.47,689.11,1.05018215]
[1748482458597,0.29007788,689.47,689.12,1.05018215]
[1748482458801,0.29007788,689.47,689.13,1.05018215]
[1748482459000,0.29007788,689.47,689.06,0.479]
[1748482459001,0.29007788,689.47,689.14,1.05036771]
[1748482459202,0.29007788,689.47,689.15,1.05036771]
[1748482459498,0.29007788,689.47,689.16,1.05036771]
[1748482459699,0.29007788,689.47,689.17,1.05036771]
[1748482459901,0.29007788,689.47,689.18,1.05036771]
[1748482460102,0.29007788,689.47,689.19,1.05036771]
[1748482460297,0.29007788,689.47,689.06,0.479]
[1748482461103,0.29007788,689.47,689.07,1.05080825]
[1748482461402,0.29007788,689.47,689.08,1.05080825]
[1748482461603,0.29007788,689.47,689.09,1.05080825]
[1748482461903,0.29007788,689.47,689.06,0.479]
[1748482462102,0.29007788,689.47,689.07,1.05105885]
[1748482462302,0.29007788,689.47,689.08,1.05105885]
[1748482462498,0.29007788,689.47,689.09,1.05105885]
[1748482462804,0.29007788,689.47,689.1,1.0513345]
[1748482463110,0.29007788,689.47,689.11,1.0513302]
[1748482463304,0.29007788,689.47,689.12,1.0513302]
[1748482463500,0.29007788,689.47,689.13,1.0513302]
[1748482463705,0.29007788,689.47,689.14,1.0513302]
[1748482463900,0.29007788,689.47,689.15,1.05151437]
[1748482464205,0.29007788,689.47,689.16,1.05149413]
[1748482464405,0.29007788,689.47,689.17,1.05149413]
[1748482464604,0.29007788,689.47,689.18,1.05149413]
[1748482464801,0.29007788,689.47,689.19,1.05149413]
[1748482465001,0.29007788,689.47,689.2,1.05149413]
[1748482465204,0.29007788,689.47,689.21,1.05149413]
[1748482465401,0.29007788,689.47,689.22,1.05149413]
[1748482465601,0.29007788,689.47,689.23,1.05134101]
[1748482465806,0.29007788,689.47,689.24,1.05177427]
[1748482466005,0.29007788,689.47,689.25,1.05177427]
[1748482466207,0.29007788,689.47,689.26,1.05177393]
[1748482466401,0.29007788,689.47,689.27,1.0517742]
[1748482466609,0.29007788,689.47,689.28,1.0517742]
[1748482466905,0.29007788,689.47,689.29,1.05196065]
[1748482467102,0.29007788,689.47,689.3,1.05196065]
[1748482467306,0.29007788,689.47,689.31,1.05196065]
[1748482467606,0.29007788,689.47,689.32,1.05196065]
[1748482467807,0.29007788,689.47,689.33,1.05221282]
[1748482468103,0.29007788,689.47,689.34,1.05220953]
[1748482468306,0.29007788,689.47,689.35,1.05220953]
[1748482468605,0.29007788,689.47,689.36,1.05220953]
[1748482468805,0.29007788,689.47,689.37,1.05220953]
[1748482469001,0.29007788,689.47,689.38,1.05220953]
[1748482469206,0.29007788,689.47,689.39,1.05220953]
[1748482469406,0.29007788,689.47,689.4,1.05220953]
[1748482469607,0.29007788,689.47,689.41,1.05220953]
[1748482469804,0.29007788,689.47,689.42,1.05228947]
[1748482470003,0.29007788,689.47,689.43,1.05228947]
[1748482470208,0.29007788,689.47,689.44,1.05228947]
[1748482470508,0.29007788,689.47,689.45,1.05228947]
[1748482470708,0.29007788,689.47,689.46,1.05228947]
[1748482470903,0.29007788,689.47,689.46,1.05231216]
[1748482471206,0.29007788,689.47,689.06,0.479]
[1748482486325,0.29007788,689.47,689.07,1.06148438]
[1748482486524,0.29007788,689.47,689.08,1.06148438]
[1748482486723,0.29007788,689.47,689.09,1.06148438]
[1748482486925,0.29007788,689.47,689.1,1.06148438]
[1748482487123,0.29007788,689.47,689.06,0.479]
[1748482487124,0.29007788,689.47,689.11,1.06148438]
[1748482487322,0.29007788,689.47,689.12,1.06148438]
[1748482487527,0.29007788,689.47,689.13,1.06148438]
[1748482487829,0.29007788,689.47,689.14,1.06148438]
[1748482488026,0.29007788,689.47,689.15,1.06148438]
[1748482488230,0.29007788,689.47,689.16,1.06178581]
[1748482488422,0.29007788,689.47,689.06,0.479]
[1748482488423,0.29007788,689.47,689.17,1.0498652]
[1748482488729,0.29007788,689.47,689.18,1.04986364]
[1748482488928,0.29007788,689.47,689.19,1.04986364]
[1748482489124,0.29007788,689.47,689.06,0.479]
[1748482489125,0.29007788,689.47,689.2,1.04986364]
[1748482489331,0.29007788,689.47,689.21,1.04986369]
[1748482489628,0.29007788,689.47,689.22,1.04986369]
[1748482489832,0.29007788,689.47,689.23,1.04986369]
[1748482490029,0.29007788,689.47,689.06,0.479]
[1748482490030,0.29007788,689.47,689.24,1.04986369]
[1748482490331,0.29007788,689.47,689.25,1.04970068]
[1748482490529,0.29007788,689.47,689.26,1.04970068]
[1748482490731,0.29007788,689.47,689.27,1.04970093]
[1748482490930,0.29007788,689.47,689.28,1.04970093]
[1748482491230,0.29007788,689.47,689.06,0.479]
[1748482491434,0.29007788,689.47,689.07,1.04970076]
[1748482491731,0.29007788,689.47,689.08,1.04970076]
[1748482491927,0.29007788,689.47,689.09,1.04970076]
[1748482492131,0.29007788,689.47,689.1,1.04973667]
[1748482492331,0.29007788,689.47,689.11,1.04973667]
[1748482492531,0.29007788,689.47,689.12,1.04973667]
[1748482492730,0.29007788,689.47,689.13,1.04973667]
[1748482492930,0.29007788,689.47,689.14,1.04977829]
[1748482493130,0.29007788,689.47,689.15,1.04977829]
[1748482493332,0.29007788,689.47,689.16,1.04977829]
[1748482493529,0.29007788,689.47,689.17,1.04977829]
[1748482493833,0.29007788,689.47,689.18,1.04948196]
[1748482494130,0.29007788,689.47,689.06,0.479]
[1748482494330,0.29007788,689.47,689.07,1.04947821]
[1748482494533,0.29007788,689.47,689.08,1.04947821]
[1748482494737,0.29007788,689.47,689.09,1.04947821]
[1748482494939,0.29007788,689.47,689.1,1.04947821]
[1748482495133,0.29007788,689.47,689.11,1.04947821]
[1748482495332,0.29007788,689.47,689.12,1.04947821]
[1748482495637,0.29007788,689.47,689.13,1.04953588]
[1748482495837,0.29007788,689.47,689.14,1.04953588]
[1748482496137,0.29007788,689.47,689.06,0.479]
[1748482496334,0.29007788,689.47,689.07,1.04953613]
[1748482496538,0.29007788,689.47,689.08,1.04953613]
[1748482496838,0.29007788,689.47,689.09,1.04953613]
[1748482497038,0.29007788,689.47,689.1,1.04953613]
[1748482497238,0.29007788,689.47,689.11,1.04953613]
[1748482497435,0.29007788,689.47,689.06,0.479]
[1748482497832,0.29007788,689.47,689.07,1.0508276]
[1748482498035,0.29007788,689.47,689.06,0.479]
[1748482498237,0.29007788,689.47,689.07,1.0508276]
[1748482498435,0.29007788,689.47,689.06,0.479]
[1748482499541,0.29007788,689.47,689.07,1.05399027]
[1748482499740,0.29007788,689.47,689.08,1.05399027]
[1748482499938,0.29007788,689.47,689.09,1.05399027]
[1748482500141,0.29007788,689.47,689.1,1.05399027]
[1748482500341,0.29007788,689.47,689.11,1.05399027]
[1748482500537,0.29007788,689.47,689.12,1.05399027]
[1748482500742,0.29007788,689.47,689.13,1.05399027]
[1748482501043,0.29007788,689.47,689.14,1.05399027]
[1748482501241,0.29007788,689.47,689.15,1.05399027]
[1748482501442,0.29007788,689.47,689.06,0.479]
[1748482501640,0.29007788,689.47,689.07,1.05456943]
[1748482501842,0.29007788,689.47,689.08,1.05456943]
[1748482502038,0.29007788,689.47,689.09,1.05456943]
[1748482502239,0.29007788,689.47,689.1,1.05451274]
[1748482502443,0.29007788,689.47,689.11,1.05451274]
[1748482502645,0.29007788,689.47,689.12,1.05451274]
[1748482502844,0.29007788,689.47,689.13,1.05451274]
[1748482503143,0.29007788,689.47,689.14,1.05451274]
[1748482503344,0.29007788,689.47,689.15,1.05451274]
[1748482503640,0.29007788,689.47,689.16,1.05451274]
[1748482503844,0.29007788,689.47,689.17,1.05451274]
[1748482504041,0.29007788,689.47,689.18,1.05451274]
[1748482504341,0.29007788,689.47,689.19,1.05449024]
[1748482504542,0.29007788,689.47,689.2,1.05449024]
[1748482504740,0.29007788,689.47,689.21,1.05449024]
[1748482505041,0.29007788,689.47,689.22,1.05449024]
[1748482505243,0.29007788,689.47,689.23,1.05449024]
[1748482505443,0.29007788,689.47,689.24,1.05449024]
[1748482505640,0.29007788,689.47,689.25,1.05449024]
[1748482505941,0.29007788,689.47,689.26,1.05449024]
[1748482506140,0.29007788,689.47,689.27,1.05449024]
[1748482506343,0.25237783,689.83,689.06,0.479]
[1748482506646,0.54230433,689.83,689.07,1.05437069]
[1748482506846,0.54230433,689.83,689.08,1.05437069]
[1748482507142,0.54230433,689.83,689.09,1.05437069]
[1748482507344,0.54230433,689.83,689.0,0.46204357]
[1748482507345,0.2899265,689.83,689.1,1.05437069]
[1748482507545,0.2899265,689.83,689.11,1.05437069]
[1748482507741,0.2899265,689.83,688.73,0.46204357]
[1748482507742,0.2899265,689.83,689.12,1.05437069]
[1748482508041,0.2899265,689.83,689.13,1.0515356]
[1748482508241,0.2899265,689.83,689.14,1.0515356]
[1748482508442,0.2899265,689.83,689.15,1.0515356]
[1748482508647,0.2899265,689.83,689.16,1.0515356]
[1748482508842,0.2899265,689.83,689.17,1.0515356]
[1748482509142,0.2899265,689.83,689.16,0.505]
[1748482509442,0.2899265,689.83,689.17,1.05128045]
[1748482509645,0.2899265,689.83,689.18,1.05128045]
[1748482509842,0.2899265,689.83,689.19,1.05109795]
[1748482510043,0.2899265,689.83,689.2,1.05109795]
[1748482510243,0.2899265,689.83,689.21,1.05109795]
[1748482510443,0.2899265,689.83,689.22,1.05109795]
[1748482510645,0.2899265,689.83,689.16,0.505]
[1748482510646,0.2899265,689.83,689.23,1.05109795]
[1748482510840,0.2899265,689.83,689.24,1.05109795]
[1748482511043,0.2899265,689.83,689.25,1.05109795]
[1748482511245,0.2899265,689.83,689.26,1.05109795]
[1748482511442,0.2899265,689.83,689.27,1.05109795]
[1748482511743,0.2899265,689.83,689.28,1.05073147]
[1748482511946,0.2899265,689.83,689.29,1.05073147]
[1748482512144,0.2899265,689.83,689.3,1.05073147]
[1748482512341,0.2899265,689.83,689.16,0.505]
[1748482512546,0.2899265,689.83,689.17,1.05072071]
[1748482512746,0.2899265,689.83,689.18,1.05072071]
[1748482512943,0.2899265,689.83,689.19,1.05072071]
[1748482513147,0.2899265,689.83,689.2,1.05072071]
[1748482513347,0.2899265,689.83,689.16,0.505]
[1748482513551,0.2899265,689.83,689.17,1.05079506]
[1748482513848,0.2899265,689.83,689.16,0.505]
[1748482513849,0.2899265,689.83,689.18,1.05080106]
[1748482514044,0.2899265,689.83,689.16,0.505]
[1748482514247,0.2899265,689.83,689.17,1.0508021]
[1748482514445,0.2899265,689.83,689.18,1.0508021]
[1748482514746,0.2899265,689.83,689.19,1.05071518]
[1748482514948,0.2899265,689.83,689.2,1.05071518]
[1748482515145,0.2899265,689.83,689.16,0.505]
[1748482515446,0.2899265,689.83,689.17,1.05069534]
[1748482515647,0.2899265,689.83,689.18,1.05069534]
[1748482515847,0.2899265,689.83,689.19,1.05069534]
[1748482516046,0.2899265,689.83,689.2,1.05069534]
[1748482516249,0.2899265,689.83,689.16,0.505]
[1748482516446,0.2899265,689.83,689.17,1.05061543]
[1748482516750,0.2899265,689.83,689.18,1.05061698]
[1748482516946,0.2899265,689.83,689.19,1.05061698]
[1748482517249,0.2899265,689.83,689.16,0.505]
[1748482517250,0.2899265,689.83,689.2,1.05061698]
[1748482517450,0.2899265,689.83,689.21,1.05061698]
[1748482517646,0.2899265,689.83,689.22,1.05061698]
[1748482517847,0.2899265,689.83,689.23,1.05061698]
[1748482518149,0.2899265,689.83,689.24,1.05061698]
[1748482518444,0.2899265,689.83,689.25,1.05061698]
[1748482518647,0.2899265,689.83,689.26,1.05061698]
[1748482518848,0.2899265,689.83,689.27,1.05061698]
[1748482519045,0.2899265,689.83,689.28,1.05061698]
[1748482519249,0.2899265,689.83,689.29,1.05069707]
[1748482519545,0.2899265,689.83,689.3,1.05069707]
[1748482519749,0.2899265,689.83,689.31,1.05069707]
[1748482519949,0.2899265,689.83,689.32,1.05069707]
[1748482520150,0.2899265,689.83,689.33,1.05069707]
[1748482520351,0.2899265,689.83,689.34,1.05069707]
[1748482520551,0.2899265,689.83,689.35,1.05069707]
[1748482520751,0.2899265,689.83,689.16,0.505]
[1748482520752,0.2899265,689.83,689.36,1.05069707]
[1748482520952,0.2899265,689.83,689.37,1.05069707]
[1748482521150,0.2899265,689.83,689.38,1.05069707]
[1748482521451,0.2899265,689.83,689.39,1.05069707]
[1748482521652,0.2899265,689.83,689.16,0.505]
[1748482521848,0.2899265,689.83,689.17,1.05069952]
[1748482522052,0.2899265,689.83,689.16,0.505]
[1748482522248,0.2899265,689.83,689.17,1.05059673]
[1748482522547,0.2899265,689.83,689.16,0.505]
[1748482522752,0.2899265,689.83,689.17,1.05059893]
[1748482522949,0.2899265,689.83,689.18,1.05059893]
[1748482523148,0.2899265,689.83,689.19,1.05059893]
[1748482523352,0.2899265,689.83,689.2,1.05059893]
[1748482523550,0.2899265,689.83,689.21,1.05059893]
[1748482523751,0.2899265,689.83,689.22,1.05059893]
[1748482523952,0.2899265,689.83,689.23,1.05067798]
[1748482524251,0.2899265,689.83,689.24,1.05067694]
[1748482524453,0.2899265,689.83,689.25,1.05067694]
[1748482524653,0.2899265,689.83,689.26,1.05065875]
[1748482524853,0.2899265,689.83,689.27,1.05065875]
[1748482525052,0.2899265,689.83,689.28,1.05065875]
[1748482525350,0.2899265,689.83,689.29,1.05041993]
[1748482525555,0.2899265,689.83,689.3,1.05041957]
[1748482525750,0.2899265,689.83,689.31,1.05041957]
[1748482525950,0.2899265,689.83,689.32,1.05041957]
[1748482526155,0.2899265,689.83,689.33,1.05040784]
[1748482526355,0.2899265,689.83,689.34,1.05040784]
[1748482526555,0.2899265,689.83,689.35,1.05040784]
[1748482526752,0.2899265,689.83,689.36,1.05040784]
[1748482526953,0.2899265,689.83,689.16,0.505]
[1748482526954,0.2899265,689.83,689.37,1.05059476]
[1748482527150,0.2899265,689.83,689.38,1.05059897]
[1748482527355,0.2899265,689.83,689.16,0.505]
[1748482527556,0.2899265,689.83,689.17,1.05063603]
[1748482527757,0.2899265,689.83,689.18,1.05063603]
[1748482527958,0.2899265,689.83,689.19,1.05063603]
[1748482528157,0.2899265,689.83,689.2,1.05063603]
[1748482528358,0.2899265,689.83,689.16,0.505]
[1748482528954,0.2899265,689.83,689.17,1.05171289]
[1748482529158,0.2899265,689.83,689.18,1.05171289]
[1748482529354,0.2899265,689.83,689.19,1.05171289]
[1748482529558,0.2899265,689.83,689.2,1.05171831]
[1748482529757,0.2899265,689.83,689.21,1.05171831]
[1748482529957,0.2899265,689.83,689.22,1.05171831]
[1748482530156,0.2899265,689.83,689.23,1.05171831]
[1748482530360,0.2899265,689.83,689.24,1.05184768]
[1748482530553,0.2899265,689.83,689.25,1.05184768]
[1748482530759,0.2899265,689.83,689.26,1.05184768]
[1748482531058,0.2899265,689.83,689.27,1.05187929]
[1748482531256,0.2899265,689.83,689.28,1.05187929]
[1748482531455,0.2899265,689.83,689.29,1.05187929]
[1748482531755,0.2899265,689.83,689.3,1.05187929]
[1748482531961,0.2899265,689.83,689.31,1.05187929]
[1748482532262,0.2899265,689.83,689.32,1.05192906]
[1748482532562,0.2899265,689.83,689.33,1.05195497]
[1748482532762,0.2899265,689.83,689.34,1.05195497]
[1748482532962,0.2899265,689.83,689.35,1.05195497]
[1748482533157,0.2899265,689.83,689.36,1.05195497]
[1748482533358,0.2899265,689.83,689.37,1.05195497]
[1748482533562,0.2899265,689.83,689.38,1.05195497]
[1748482533863,0.2899265,689.83,689.39,1.05195497]
[1748482534062,0.2899265,689.83,689.4,1.05195497]
[1748482534363,0.2899265,689.83,689.41,1.05195497]
[1748482534564,0.2899265,689.83,689.42,1.05195497]
[1748482534859,0.2899265,689.83,689.43,1.05198632]
[1748482535065,0.2899265,689.83,689.44,1.05198632]
[1748482535260,0.2899265,689.83,689.45,1.05198632]
[1748482535562,0.2899265,689.83,689.46,1.05198632]
[1748482535763,0.2899265,689.83,689.47,1.05198632]
[1748482536059,0.2899265,689.83,689.48,1.05190982]
[1748482536264,0.2899265,689.83,689.49,1.05190982]
[1748482536463,0.2899265,689.83,689.5,1.05190982]
[1748482536764,0.2899265,689.83,689.51,1.05190982]
[1748482536966,0.2899265,689.83,689.52,1.05190982]
[1748482537261,0.2899265,689.83,689.53,1.05190982]
[1748482537470,0.2899265,689.83,689.16,0.505]
[1748482537667,0.2899265,689.83,689.17,1.05166999]
[1748482537869,0.2899265,689.83,689.18,1.05166999]
[1748482538169,0.2899265,689.83,689.19,1.05166999]
[1748482538370,0.2899265,689.83,689.2,1.05166999]
[1748482538566,0.2899265,689.83,689.21,1.05166999]
[1748482538765,0.2899265,689.83,689.22,1.05166999]
[1748482539066,0.2899265,689.83,689.23,1.05166999]
[1748482539270,0.2899265,689.83,689.16,0.505]
[1748482539271,0.2899265,689.83,689.24,1.05166999]
[1748482539466,0.2899265,689.83,689.25,1.05166999]
[1748482539665,0.2899265,689.83,689.26,1.05166999]
[1748482539970,0.2899265,689.83,689.16,0.505]
[1748482540171,0.2899265,689.83,689.17,1.05288417]
[1748482540366,0.2899265,689.83,689.18,1.05288417]
[1748482540572,0.2899265,689.83,689.19,1.05288417]
[1748482540771,0.2899265,689.83,689.2,1.05293292]
[1748482541067,0.2899265,689.83,689.21,1.05293292]
[1748482541271,0.2899265,689.83,689.22,1.05293292]
[1748482541471,0.2899265,689.83,689.23,1.05293292]
[1748482541767,0.2899265,689.83,689.24,1.05293292]
[1748482541971,0.2899265,689.83,689.25,1.05293292]
[1748482542173,0.2899265,689.83,689.26,1.05293292]
[1748482542468,0.2899265,689.83,689.27,1.05293292]
[1748482542669,0.2899265,689.83,689.28,1.05289711]
[1748482542869,0.2899265,689.83,689.29,1.05289626]
[1748482543168,0.2899265,689.83,689.3,1.05289626]
[1748482543370,0.2899265,689.83,689.31,1.05289626]
[1748482543569,0.2899265,689.83,689.16,0.505]
[1748482543570,0.2899265,689.83,689.32,1.05289806]
[1748482543770,0.2899265,689.83,689.33,1.05289806]
[1748482543974,0.2899265,689.83,689.34,1.05289806]
[1748482544175,0.2899265,689.83,689.16,0.505]
[1748482544376,0.2899265,689.83,689.17,1.05289703]
[1748482544575,0.2899265,689.83,689.18,1.05289703]
[1748482544776,0.2899265,689.83,689.19,1.05289703]
[1748482544972,0.2899265,689.83,689.2,1.05289703]
[1748482545177,0.2899265,689.83,689.21,1.05289703]
[1748482545376,0.2899265,689.83,689.22,1.05290802]
[1748482545674,0.2899265,689.83,689.23,1.05290906]
[1748482545877,0.2899265,689.83,689.24,1.05290906]
[1748482546077,0.2899265,689.83,689.25,1.05290906]
[1748482546273,0.2899265,689.83,689.26,1.05290906]
[1748482546474,0.2899265,689.83,689.27,1.05290202]
[1748482546673,0.2899265,689.83,689.28,1.05290202]
[1748482546874,0.2899265,689.83,689.29,1.05290202]
[1748482547077,0.2899265,689.83,689.3,1.05290202]
[1748482547278,0.2899265,689.83,689.31,1.05290202]
[1748482547473,0.2899265,689.83,689.32,1.05290202]
[1748482547673,0.2899265,689.83,689.33,1.05290202]
[1748482547973,0.2899265,689.83,689.34,1.05290202]
[1748482548176,0.2899265,689.83,689.35,1.05287226]
[1748482548378,0.2899265,689.83,689.36,1.05287226]
[1748482548573,0.2899265,689.83,689.37,1.05287008]
[1748482548777,0.2899265,689.83,689.38,1.05287008]
[1748482548977,0.2899265,689.83,689.39,1.05287008]
[1748482549178,0.2899265,689.83,689.4,1.05287008]
[1748482549480,0.2899265,689.83,689.41,1.05287041]
[1748482549775,0.2899265,689.83,689.42,1.05287041]
[1748482549978,0.2899265,689.83,689.43,1.05287041]
[1748482550175,0.2899265,689.83,689.44,1.05287041]
[1748482550478,0.2899265,689.83,689.45,1.05287041]
[1748482550679,0.2899265,689.83,689.46,1.0528655]
[1748482550880,0.2899265,689.83,689.47,1.0528655]
[1748482551075,0.2899265,689.83,689.48,1.0528655]
[1748482551280,0.2899265,689.83,689.49,1.0528655]
[1748482551477,0.2899265,689.83,689.5,1.0528655]
[1748482551676,0.2899265,689.83,689.51,1.0528655]
[1748482551878,0.2899265,689.83,689.52,1.0528655]
[1748482552082,0.2899265,689.83,689.53,1.05286316]
[1748482552382,0.2899265,689.83,689.54,1.05286316]
[1748482552582,0.2899265,689.83,689.55,1.05286316]
[1748482552783,0.2899265,689.83,689.56,1.05286316]
[1748482552979,0.2899265,689.83,689.57,1.05286316]
[1748482553283,0.2899265,689.83,689.58,1.05286316]
[1748482553478,0.2899265,689.83,689.42,0.468]
[1748482553479,0.2899265,689.83,689.59,1.05283923]
[1748482553683,0.2899265,689.83,689.6,1.05283923]
[1748482553882,0.2899265,689.83,689.61,1.05283923]
[1748482554081,0.2899265,689.83,689.62,1.05283923]
[1748482554283,0.2899265,689.83,689.63,1.05283923]
[1748482554484,0.2899265,689.83,689.64,1.05283923]
[1748482554680,0.2899265,689.83,689.65,1.05283923]
[1748482554881,0.2899265,689.83,689.42,0.468]
[1748482555082,0.2899265,689.83,689.43,1.05290768]
[1748482555281,0.2899265,689.83,689.44,1.05290765]
[1748482555485,0.2899265,689.83,689.45,1.05290765]
[1748482555784,0.2899265,689.83,689.46,1.05290765]
[1748482555986,0.2899265,689.83,689.47,1.05290765]
[1748482556285,0.2899265,689.83,689.48,1.05291399]
[1748482556486,0.2899265,689.83,689.49,1.05291399]
[1748482556786,0.2899265,689.83,689.42,0.468]
[1748482556787,0.2899265,689.83,689.5,1.05291399]
[1748482557085,0.2899265,689.83,689.51,1.05291399]
[1748482557281,0.2899265,689.83,689.52,1.05291399]
[1748482557481,0.2899265,689.83,689.53,1.05291399]
[1748482557685,0.2899265,689.83,689.54,1.05291399]
[1748482557980,0.2899265,689.83,689.55,1.05291399]
[1748482558181,0.2899265,689.83,689.56,1.05291399]
[1748482558382,0.2899265,689.83,689.57,1.05291399]
[1748482558586,0.2899265,689.83,689.42,0.468]
[1748482558787,0.2899265,689.83,689.43,1.05289312]
[1748482558986,0.2899265,689.83,689.44,1.05289312]
[1748482559184,0.2899265,689.83,689.45,1.05289312]